Cogmind - Beta 17 @@@ ROGUE MODE // 2026.06.26 @ 13:46:39 Player: Brananarchy Result: Destroyed by Y-45 Defender with Beam Rifle Performance ------------- Evolutions (2) 1000 Regions Visited (4) 800 Robots Destroyed (48) 240 Value Destroyed (1083) 1083 Prototype IDs (1) 20 Alien Tech Used (0) 0 Bonus (0) 0 TOTAL SCORE: 3143 Bonus ------- None Cogmind --------- Core Integrity 0/550 Matter 21/300 Energy 60/100 System Corruption 0% Temperature Warning (349) Movement Core (700) Ox13 Location -8/Materials Parts ------- > --- POWER (1) -------- (None) > --- PROPULSION (4) --- (None) > --- UTILITY (4) ------ High-capacity Storage Unit > --- WEAPON (2) ------- (None) > --- INVENTORY (20) --- Improved Heat Sink Small Storage Unit Weight Redist. System Weight Redist. System Experimental Sensor Array Improved Signal Interpreter ECM Suite Grenade Launcher Mining Laser Peak State ------------ > --- POWER ------------ Cooled Ion Engine > --- PROPULSION ------- Aluminum Leg Aluminum Leg Aluminum Leg Titanium Leg > --- UTILITY ---------- Improved Heat Sink High-capacity Storage Unit Improved Light Armor Plating Improved Light Armor Plating > --- WEAPON ----------- Light Assault Rifle Light Assault Rifle > --- INVENTORY -------- Light Ion Engine Small Storage Unit Weight Redist. System Weight Redist. System Experimental Sensor Array Improved Signal Interpreter ECM Suite Small Laser Beam Rifle Heavy Assault Rifle Grenade Launcher Mining Laser [Rating: 23] Favorites ----------- Power Cooled Ion Engine Engine Cooled Ion Engine Propulsion Aluminum Leg Leg Aluminum Leg Utility Small Storage Unit Device Improved Heat Sink Storage Small Storage Unit Protection Light Armor Plating Weapon Light Assault Rifle Energy Gun Small Laser Ballistic Gun Light Assault Rifle Launcher Grenade Launcher Build | -11 -10 -9 -9 -8 ------- Run | Yrd Mat Mat Min Mat Slots Evolved 4 | . . 2 . 2 Power . | . . . . . Propulsion 2 | . . 2 . . Utility 2 | . . . . 2 Weapon . | . . . . . Parts Attached 31 | 6 3 7 6 9 Power 2 | 1 . 1 . . Engine 2 | 1 . 1 . . Core . | . . . . . Reactor . | . . . . . Propulsion 9 | 2 . 3 2 2 Treads . | . . . . . Leg 9 | 2 . 3 2 2 Wheel . | . . . . . Hover . | . . . . . Flight . | . . . . . Utility 11 | 1 2 2 1 5 Device 6 | 1 2 . 1 2 Storage 2 | . . 1 . 1 Processor . | . . . . . Hackware . | . . . . . Protection 3 | . . 1 . 2 Artifact . | . . . . . Weapon 9 | 2 1 1 3 2 Energy Gun 2 | . . . 1 1 Energy Cannon . | . . . . . Ballistic Gun 5 | 2 . 1 2 . Ballistic Cannon . | . . . . . Launcher 2 | . 1 . . 1 Special Weapon . | . . . . . Impact Weapon . | . . . . . Slashing Weapon . | . . . . . Piercing Weapon . | . . . . . Special Melee Weapon . | . . . . . Unidentified Prototypes 1 | . . 1 . . Parts Lost 20 | . . 2 4 14 Power 2 | . . . . 2 Propulsion 8 | . . 1 3 4 Utility 4 | . . . 1 3 Weapon 6 | . . 1 . 5 Highest Loss Streak 14 | . . 2 2 14 To Critical Strikes . | . . . . . Average Backups 6 | 1 4 6 7 9 Power . | . . . 1 . Propulsion . | . 2 . . . Utility 1 | . . 1 1 3 Weapon 4 | . 2 4 4 4 Tool/Special . | . . . . . Unused Backups 4 | . . . . 4 Power . | . . . . . Propulsion . | . . . . . Utility 3 | . . . . 3 Weapon 1 | . . . . 1 Tool/Special . | . . . . . Average Slot Usage (%) 81 | . 91 95 69 79 Engine 10 | . 14 11 11 8 Leg 25 | . 28 40 14 21 Device 11 | . 20 5 10 18 Storage 8 | . . 7 11 9 Protection 3 | . . 7 . 4 Ballistic Gun 19 | . 27 21 17 14 Launcher 1 | . . . 3 . Peak Build Rating 23 | 6 7 13 12 23 Average Rating 11 | 3 6 11 11 16 On Entrance 7 | . 6 7 12 12 Avg Prop Armor Cover (%) . | . . . . . Naked Turns . | . . . . . Heaviest Build 57 | 8 10 21 21 57 Greatest Support 53 | 20 20 40 30 53 Greatest Overweight (x) 13 | . . . 1 13 Average Overweight (x) . | . . . . 1 Largest Inventory Capacity 20 | 5 5 8 8 20 Average Capacity 9 | 5 5 7 8 19 Most Carried 13 | 4 5 8 8 13 Average Carried 6 | 1 4 6 7 9 Final Capacity 20 | 5 5 8 8 20 Final Carried 9 | 4 5 7 8 9 Class Distribution -------------------- 64% | Scavenger-Mutant 35% | Mutant Dominant Class ---------------- Mutant | -10/Materials Scavenger-Mutant | -9/Materials Scavenger-Mutant | -9/Mines Scavenger-Mutant | -8/Materials Resources | -11 -10 -9 -9 -8 ----------- Run | Yrd Mat Mat Min Mat Matter Collected 910 | 284 108 338 160 20 Remotely . | . . . . . Salvage Created 1231 | 77 144 545 131 334 Parts 85 | 6 11 42 13 13 Haulers Intercepted . | . . . . . Recyclers Shooed 1 | . 1 . . . Parts Field Recycled . | . . . . . Retrieved Matter . | . . . . . Parts Self-Destructed . | . . . . . Prevented . | . . . . . Parts Restored . | . . . . . Kills | -11 -10 -9 -9 -8 ------- Run | Yrd Mat Mat Min Mat Combat Hostiles Destroyed 41 | 1 6 18 9 7 Guns 28 | 1 3 18 5 1 AOE 13 | . 3 . 4 6 Classes Destroyed 7 | 2 1 2 . 2 Worker 3 | . . 2 . 1 Builder 1 | . . . . 1 Tunneler 1 | 1 . . . . Recycler 2 | . . . . 2 Swarmer 21 | . 3 11 6 1 Grunt 15 | 1 3 4 3 4 Sentry 5 | . . 3 . 2 Best Kill Streak 8 | 2 4 8 3 7 Combat Bots Only 8 | 1 4 8 3 3 Max Kills in Single Turn 2 | 1 2 2 2 2 Gunslinging 1 | . . 1 . . Exploded 2 | . 2 . 2 1 Melee . | . . . . . Uniques/NPCs Destroyed . | . . . . . Combat | -11 -10 -9 -9 -8 -------- Run | Yrd Mat Mat Min Mat Hostile Shots Fired 353 | 5 26 106 43 173 Missed 105 | . 10 35 16 44 Hits 248 | 5 16 71 27 129 Projectile 248 | 5 16 71 27 129 Critical Strikes 9 | . . 1 . 8 Damage Taken 2963 | 55 143 679 305 1781 Core 829 | 10 38 145 73 563 Absorbed by Shields . | . . . . . Core Remaining (%) 73 | 96 80 . 45 . Volleys Fired 115 | 4 11 50 24 26 Largest 2 | 2 2 2 2 2 Hottest 96 | 40 40 43 63 96 Shots Fired 193 | 8 19 92 31 43 Gun 173 | 8 16 92 22 35 Cannon . | . . . . . Launcher 20 | . 3 . 9 8 Special . | . . . . . Kinetic 152 | 8 16 92 19 17 Thermal 21 | . . . 3 18 Explosive 20 | . 3 . 9 8 Electromagnetic . | . . . . . Robot Hit Streak 8 | 3 3 8 4 5 Robot Miss Streak 6 | 3 1 6 4 3 Penetration Max . | . . . . . Secondary Targets 4 | . . 3 . 1 Max Gunslinging Chain 1 | . . 1 . 1 Shots Hit Robots 115 | 4 11 55 18 27 Core Hits 76 | 3 8 28 12 25 Critical Kills . | . . . . . Critical Parts Destroyed . | . . . . . Critical Strikes . | . . . . . Melee Attacks . | . . . . . Impact . | . . . . . Slashing . | . . . . . Piercing . | . . . . . Sneak Attacks . | . . . . . Combat Hostiles . | . . . . . Follow-up Attacks . | . . . . . Damage Inflicted 2611 | 59 233 813 504 1002 Guns 1400 | 59 121 813 147 260 Cannons . | . . . . . Explosions 1211 | . 112 . 357 742 Melee . | . . . . . Ramming . | . . . . . Kinetic 1230 | 59 121 813 123 114 Thermal 170 | . . . 24 146 Explosive 1211 | . 112 . 357 742 Electromagnetic . | . . . . . Impact . | . . . . . Slashing . | . . . . . Piercing . | . . . . . Highest Corruption 2 | . . 2 2 . Average Corruption 1 | . . 1 2 . Corruption Purged . | . . . . . Corruption Blocked . | . . . . . Effects 10 | . . 1 9 . Message Errors 2 | . . . 2 . Matter Fused 2 | . . . 2 . Heat Flow Errors 1 | . . 1 . . Parts Rejected 1 | . . . 1 . Data Loss (minor) 2 | . . . 2 . Misfires 2 | . . . 2 . Overload Shots . | . . . . . Overflow Damage 10 | . . . . 10 Projectiles . | . . . . . Explosions 10 | . . . . 10 Melee . | . . . . . Knockbacks . | . . . . . Impact . | . . . . . Kinetic . | . . . . . Secondary . | . . . . . Self-Inflicted Damage 52 | . . . 52 . Shots 2 | . . . 2 . Rammed . | . . . . . Targets Rammed . | . . . . . Kicked . | . . . . . Crushed . | . . . . . Highest Temperature 535 | . . 229 . 535 Average Temperature 299 | . . 103 . 357 Received Heat Transfer 1041 | 30 36 138 63 774 Effects 7 | . . . . 7 Energy Bleed 2 | . . . . 2 Interference 2 | . . . . 2 Matter Decay 2 | . . . . 2 Short Circuit 1 | . . . . 1 Siege Activations . | . . . . . Martial Activations . | . . . . . Shielding Activations . | . . . . . Robots Disrupted . | . . . . . Combat Hostiles . | . . . . . Robots Corrupted . | . . . . . Combat Hostiles . | . . . . . Parts Fried . | . . . . . Impact Corruptions . | . . . . . Robots Melted . | . . . . . Combat Hostiles . | . . . . . Parts Melted 1 | . . . . 1 Heat Transferred 385 | . . . 50 335 Parts Sabotaged . | . . . . . Parts Stolen . | . . . . . Parts Stripped . | . . . . . Power Chain Reactions . | . . . . . Alert | -11 -10 -9 -9 -8 ------- Run | Yrd Mat Mat Min Mat Maximum Alert Level 1 | . . 1 1 . Low Security (%) 83 | 100 100 74 73 100 Level 1 16 | . . 25 26 . Level 2 . | . . . . . Level 3 . | . . . . . Level 4 . | . . . . . Level 5 . | . . . . . High Security . | . . . . . Max Security . | . . . . . Peak Influence 300 | 25 139 300 250 100 Initial 105 | . 9 50 105 23 Average 112 | 3 33 157 156 38 Influence Increases 1182 | 25 179 455 282 241 Destroy 0b10 Robot/C 820 | 20 120 360 180 140 Destroy 0b10 Robot/NC 35 | 5 . 10 . 20 Destroy Leader 150 | . 20 70 30 30 Disable Machine 45 | . 15 . . 30 Destroy Structure 87 | . 9 . 57 21 Lose Combat Pursuer 45 | . 15 15 15 . Influence Decreases 1111 | 10 75 303 492 231 Entered New Map 279 | . 6 69 166 38 Time Decay 682 | 10 69 214 286 103 Lost Part 150 | . . 20 40 90 Squads Dispatched 3 | . 2 . . 1 Investigation 1 | . 1 . . . Extermination . | . . . . . Reinforcement 1 | . 1 . . . Assault . | . . . . . Garrison 1 | . . . . 1 Intercept . | . . . . . Searches Triggered . | . . . . . Construction Impeded . | . . . . . Haulers Reinforced . | . . . . . Active Scanning Responses . | . . . . . Cargo Convoy Interrupts . | . . . . . Stealth | -11 -10 -9 -9 -8 --------- Run | Yrd Mat Mat Min Mat Distress Signals 2 | . 1 . . 1 Communications Jammed . | . . . . . Distress Signals . | . . . . . Times Spotted 60 | 1 7 21 14 17 Peak Tracking Total 9 | 1 4 6 4 9 Tactical Retreats 3 | . 1 1 1 . Traps | -11 -10 -9 -9 -8 ------- Run | Yrd Mat Mat Min Mat Traps Triggered 2 | . . 2 . . Indirectly . | . . . . . Trap Hack Attempts . | . . . . . Triggered . | . . . . . Disarmed . | . . . . . Reprogrammed . | . . . . . Reused . | . . . . . Traps Extracted . | . . . . . Installed . | . . . . . Triggered . | . . . . . Machines | -11 -10 -9 -9 -8 ---------- Run | Yrd Mat Mat Min Mat Machines Disabled 3 | . 1 . . 2 Max in Single Turn 2 | . 1 . . 2 Machines Repaired . | . . . . . Machines Dismantled . | . . . . . Machines Sabotaged . | . . . . . Overloaded Fab Kills . | . . . . . Hacking | -11 -10 -9 -9 -8 --------- Run | Yrd Mat Mat Min Mat Machines Accessed . | . . . . . Terminals . | . . . . . Fabricators . | . . . . . Repair Stations . | . . . . . Recycling Units . | . . . . . Scanalyzers . | . . . . . Garrison Access . | . . . . . Total Hacks . | . . . . . Successful . | . . . . . Failed . | . . . . . Catastrophic . | . . . . . Database Lockouts . | . . . . . Manual . | . . . . . Terminals . | . . . . . Fabricators . | . . . . . Repair Stations . | . . . . . Recycling Units . | . . . . . Scanalyzers . | . . . . . Garrison Access . | . . . . . Terminal Hacks . | . . . . . Fabricator Hacks . | . . . . . Repair Station Hacks . | . . . . . Recycling Unit Hacks . | . . . . . Scanalyzer . | . . . . . Garrison Access Hacks . | . . . . . Unauthorized Hacks . | . . . . . Terminals . | . . . . . Fabricators . | . . . . . Repair Stations . | . . . . . Recycling Units . | . . . . . Scanalyzers . | . . . . . Garrison Access . | . . . . . Data Cores Recovered . | . . . . . Used . | . . . . . Hacking Detections . | . . . . . Full Trace Events . | . . . . . Feedback Events . | . . . . . Feedback Blocked . | . . . . . Robot Schematics Acquired . | . . . . . Robots Built . | . . . . . Authchips . | . . . . . Time . | . . . . . Total Robot Build Rating . | . . . . . Part Schematics Acquired . | . . . . . Parts Built . | . . . . . Authchips . | . . . . . Time . | . . . . . Total Part Build Rating . | . . . . . Part Studies Acquired . | . . . . . Parts Repaired . | . . . . . Time . | . . . . . Parts Recycled . | . . . . . Recycled Matter . | . . . . . Retrieved Matter . | . . . . . Retrieved Components . | . . . . . Parts Scanalyzed . | . . . . . Part Schematics Acquired . | . . . . . Parts Damaged . | . . . . . Bothacking | -11 -10 -9 -9 -8 ------------ Run | Yrd Mat Mat Min Mat Used RIF Installer . | . . . . . Robots Hacked . | . . . . . Non-combat . | . . . . . Combat . | . . . . . Robot Hacks Applied . | . . . . . Relay Couplers Released . | . . . . . Fabnet Peak Effective % . | . . . . . Robots Rewired . | . . . . . Allies Hacked . | . . . . . Hacks Repelled . | . . . . . Allies | -11 -10 -9 -9 -8 -------- Run | Yrd Mat Mat Min Mat Total Allies . | . . . . . Largest Group . | . . . . . Highest-Rated Group . | . . . . . Highest-Rated Ally . | . . . . . Total Orders . | . . . . . Ally Attacks . | . . . . . Total Damage . | . . . . . Kills . | . . . . . Allies Corrupted . | . . . . . Allies Melted . | . . . . . Intel | -11 -10 -9 -9 -8 ------- Run | Yrd Mat Mat Min Mat Active Infowar (turns) 206 | . 15 43 . 148 ECM 206 | . 15 43 . 148 Robot Analysis Total . | . . . . . Derelict Logs Recovered 1 | . . . 1 . Drone Launches . | . . . . . Drone Recoveries . | . . . . . Exploration | -11 -10 -9 -9 -8 ------------- Run | Yrd Mat Mat Min Mat Turns Passed 1663 | 96 186 447 636 298 Spaces Moved 892 | 67 124 241 354 106 Core 18 | 17 . . . 1 Treads . | . . . . . Legs 874 | 50 124 241 354 105 Wheels . | . . . . . Hover . | . . . . . Flight . | . . . . . Fastest Speed 50 | 50 120 120 120 120 Average Speed 143 | 102 120 120 160 192 Slowest Speed 700 | 120 120 120 190 700 Overloaded Moves . | . . . . . Propulsion Burnouts . | . . . . . Robots Hopped . | . . . . . Potential Cave-ins . | . . . . . Cave-ins Triggered . | . . . . . Exploration Rate (%) 33 | 8 29 30 84 17 Regions Visited 4 Branch Regions 1 Pre-discovered Areas 1 | . . . 1 . Known Exits Taken . | . . . . . Unknown Exits Taken 4 | 1 1 1 1 . Scrap Searched 1 | . . . 1 . Spaces Dug . | . . . . . Terrain Destroyed 122 | . 9 . 92 21 Melee . | . . . . . Projectile . | . . . . . AOE 122 | . 9 . 92 21 Terrain Rammed . | . . . . . Walls Destroyed . | . . . . . Machines Disabled . | . . . . . Actions | -11 -10 -9 -9 -8 --------- Run | Yrd Mat Mat Min Mat Total 1091 | 86 140 311 395 159 Wait . | . . . . . Move 888 | 66 123 240 353 106 Hop . | . . . . . Pick Up 33 | 10 1 7 6 9 Fast Attach 4 | . 2 1 1 . Attach 27 | 6 . 5 6 10 Detach 5 | . . 2 1 2 Swap 12 | . 2 2 2 6 Drop 7 | . 1 4 2 . Fire 115 | 4 11 50 24 26 Melee . | . . . . . Ram . | . . . . . Kick . | . . . . . Crush . | . . . . . Escape Stasis . | . . . . . Rewire . | . . . . . Trap . | . . . . . Miscellaneous . | . . . . . Route ------- -11/Scrapyard -10/Materials -9/Materials -9/Mines -8/Materials History --------- Turn | Location | Event 2 | -11/Scrapyard | Met Revision 17 58 | -11/Scrapyard | Discovered new exit (range 8) 97 | -11/Scrapyard | Entered Materials 98 | -10/Materials | Met a group of wandering Federalists 245 | -10/Materials | Discovered new exit (range 16) 283 | -10/Materials | Entered another Materials area 283 | -9/Materials | Evolved 2 slots: Propulsion x2 305 | -9/Materials | Build established: Mutant 673 | -9/Materials | Destroyed 8 combat bots 717 | -9/Materials | Build established: Scavenger-Mutant 723 | -9/Materials | Discovered new exit (range 7) 730 | -9/Materials | Entered Mines 820 | -9/Mines | Learned location of Zion (-6) 965 | -9/Mines | Found a damaged Exp. Sensor Array with a note attached 969 | -9/Mines | Found Prototype Device 1159 | -9/Mines | YI-UF0 nonchalantly dropped a Grenade Launcher on the ground 1258 | -9/Mines | Core integrity fell below 50% 1356 | -9/Mines | Discovered new exit (range 10) 1366 | -9/Mines | Entered Materials 1366 | -8/Materials | Evolved 2 slots: Utility x2 1627 | -8/Materials | Garrison activated, responded to threat 1650 | -8/Materials | Core integrity fell below 50% 1660 | -8/Materials | Core integrity fell below 20% 1664 | -8/Materials | Destroyed by Y-45 Defender with Beam Rifle Last Messages --------------- 01649_ U-05 Engineer builds a Wall. 01650_ U-05 Engineer destroyed. 01650_ S-10 Pest destroyed. 01652_ Y-45 Defender destroyed. [Achievement: Resistances Are Futile] 01652_ R-06 Scavenger destroyed. 01652_ Beam Rifle destroyed. 01653_ Overheating: Energy bleed (-6). 01654_ Overheating: System interference. 01654_ Grenade Launcher temporarily disabled. 01655_ Hvy. Assault Rifle destroyed. 01657_ Lgt. Assault Rifle destroyed. 01658_ U-05 Engineer lays Concrete. 01659_ U-05 Engineer builds a Wall. 01659_ U-05 Engineer lays Concrete. 01660_ U-05 Engineer builds a Wall. 01661_ U-05 Engineer lays Concrete. 01662_ U-05 Engineer builds a Wall. 01663_ The unstable cave ceiling collapses. 01663_ U-05 Engineer lays Concrete. Map ----- +----------------------------------------------------+ | ?????????????????????????????????????????????????? | | ?????????????????????????????????????????????????? | | ?????????????????????????????????????????????????? | | ?????????????????????????????????????????????????? | | ?????????????????????????????????????????????????? | | ?????????????????????????????????????????????????? | | ?????????????????????????????????????????????????? | | ?????????????????????????????????????????????????? | | ?????????????????????????????????????????????????? | | ?????????????????????????????????????????????????? | | ??????????????????????? *???????????????????????? | | ?????????????????????? ??????????????????????? | | ?????????????????????? ??????????????????????? | | ?????????????????????? % ??????????????????????? | | ??????????????????????# ??????????/???????????? | | ????????????????????### ?????????? ???????????? | | ????????????????????# ###???????? ???????????? | | ???????????????????## Y #???????# ???????????? | | ?????????????????### # ???????# ???????????? | | ?????????????????? # =????????# ???????????? | | ??????????????????? #u %*%????????# ???????????? | | ???????????????????? #u =?????????# #??????????? | | ????????????????????? u ?????????# #??????????? | | ??????????????????????#%%=#?????????# #?????????? | | ??????????????????????# [ #?????????# #####+#####+ | | ??????????????????????# @#?????????+ + | | ??????????????????????# #?????????# # | | ??????????????###+#####g ########### # !! """ | | ?????????? g Y # """ | | ??????H??? + """ | | ?????????? """ # """ | | ???????????##### ############ """ # | | ???????????????# ????????????# """ # / | | ???????????????# ????????????#" #######+## | | ???????????????#?????????????#T #??# | | ?????????????????????????????#" """ #??# | | ?????????????????????????????## """ #??# """ | | ??????????????????????????????# """ #??# """ | | ??????????????????????????????# #??# """ | | ??????????????????????????????# #??# | | ??????????????????????????????# """ #??####+## | | ??????????????????????????????# """ #???# | | ??????????????????????????????# """ ##### | | ??????????????????????????????# T | | ??????????????????????????????# ##### | | ??????????????????????????????# "" #???# | | ??????????????????????????????# " #???## # | | ??????????????????????????????# " "#????# # | | ?????????????????????????????## "#????# # | | ?????????????????????????????# ! "#????# # | +----------------------------------------------------+ Best States ------------- Heat Dissipation 45 Energy Generation 14 Energy Capacity 280 Matter Stores 300 Matter Capacity 300 Sight Range 16 Terrain Scan Density 10 ECM Strength 1 Additional Mass Support 6 Armor Coverage 300 Evasion (%) 55 Particle Charging 15 Item Schematics ----------------- None Robot Schematics ------------------ None Fabricated ------------ Nothing Repaired ---------- Nothing Studied --------- None Alien Tech Used ----------------- None Achievements -------------- Maybe Next Time I'll Detach My Launcher Resistances Are Futile Risk Taker Troublemaker Challenges ------------ None Game ------ Seed BlanketChromionDisplacer Manual? 0 Play Time 00:32:12 Cumulative 3.5 hours Start 2026.06.26 @ 13:04:21 End 2026.06.26 @ 13:46:39 Sessions 1 Manual Loads 0 Difficulty Rogue Special Mode None Game No. 9 Rogue 9 Adventurer 0 Explorer 0 Win Type - Total 0 Types 0/0/0/0/0/0/0/0/0/0 Lore% 6 Gallery% 6 Achievement% 9 Wizard Run 0 Options --------- Layout 1 ASCII 0 Keyboard 0 Movement Mouse Keybinds 0 Fullscreen 1 Font 32/SmallcapsGlow Map View 50x35 Zoom Use 0% Tactical HUD 1 Map Filters NONE Filters NONE Steam 1 RUN: 74a27b0d-9165-4a1f-8575-eac0ad75dad0